bitfinex/quotes_SOLUSD_20230904
["timestamp","ask_amount","ask_price","bid_price","bid_amount"]
[1693863907180,4.0,19.369,19.357,46.353]
[1693863907376,4.0,19.369,19.358,55.0]
[1693863918587,4.0,19.369,19.357,46.353]
[1693863931691,12.054,19.369,19.357,46.353]
[1693863936095,12.054,19.369,19.358,55.0]
[1693863941003,4.0,19.369,19.358,55.0]
[1693863943397,4.0,19.369,19.357,46.353]
[1693863943608,12.054,19.369,19.357,46.353]
[1693863950198,4.0,19.369,19.357,46.353]
[1693863955409,4.0,19.369,19.358,55.0]
[1693863955812,4.0,19.375,19.36,38.3]
[1693863956121,8.05,19.377,19.361,75.94461036]
[1693863956816,2.09221995,19.376,19.361,75.94461036]
[1693863957017,10.14321995,19.376,19.361,75.94461036]
[1693863961623,2.09221995,19.376,19.361,75.94461036]
[1693863961827,57.61065343,19.377,19.361,75.94461036]
[1693863962929,2.61065343,19.377,19.361,75.94461036]
[1693863964026,10.66065343,19.377,19.361,75.94461036]
[1693863964317,55.0,19.376,19.361,75.94461036]
[1693863964518,3.19574637,19.375,19.361,75.94461036]
[1693863966221,3.19574637,19.375,19.361,0.94461036]
[1693863966416,3.19574637,19.375,19.358,0.94461036]
[1693863966417,38.3,19.37,19.358,0.94461036]
[1693863966620,8.054,19.369,19.358,0.94461036]
[1693863966816,1.55994483,19.368,19.358,0.94461036]
[1693863967018,8.054,19.369,19.358,0.94461036]
[1693863967316,1.69478668,19.369,19.358,0.94461036]
[1693863967515,9.74878668,19.369,19.358,0.94461036]
[1693863967822,8.054,19.369,19.358,0.94461036]
[1693863968017,1.53011073,19.368,19.358,0.94461036]
[1693863968814,8.054,19.368,19.358,0.94461036]
[1693863969624,1.83083295,19.367,19.358,0.94461036]
[1693863970528,9.88583295,19.367,19.358,0.94461036]
[1693863970830,8.055,19.367,19.358,0.94461036]
[1693863971622,8.054,19.368,19.358,0.94461036]
[1693863972509,1.59841724,19.367,19.358,0.94461036]
[1693863973030,8.054,19.368,19.358,0.94461036]
[1693863973531,1.8039608,19.367,19.358,0.94461036]
[1693863974939,38.3,19.37,19.358,55.94461036]
[1693863979539,100.7772,19.374,19.358,55.94461036]
[1693863979739,2.97360808,19.373,19.358,55.94461036]
[1693863980919,11.02560808,19.373,19.358,55.94461036]
[1693863981118,8.052,19.373,19.358,55.94461036]
[1693863981318,4.0,19.372,19.358,55.94461036]
[1693863981534,8.053,19.371,19.358,55.94461036]
[1693863982242,8.052,19.373,19.358,55.94461036]
[1693863982429,4.0,19.372,19.358,55.94461036]
[1693863982625,12.052,19.372,19.358,55.94461036]
[1693863985538,4.0,19.372,19.358,55.94461036]
[1693863986741,12.052,19.372,19.358,55.94461036]
[1693863987538,4.0,19.372,19.358,55.94461036]
[1693863987738,4.0,19.373,19.358,55.94461036]
[1693863989939,12.052,19.373,19.358,55.94461036]
[1693863990238,4.0,19.373,19.358,55.94461036]
[1693863990532,12.052,19.373,19.358,55.94461036]
[1693863991441,4.0,19.373,19.358,55.94461036]
[1693863993230,12.052,19.373,19.358,55.94461036]
[1693863993428,4.0,19.373,19.358,55.94461036]
[1693863993839,4.0,19.374,19.358,55.94461036]
[1693863996034,12.052,19.374,19.36,38.3]
[1693863996235,12.052,19.374,19.361,55.94461036]
[1693863998648,8.052,19.374,19.361,55.94461036]
[1693863999142,4.0,19.373,19.361,55.94461036]
[1693863999551,8.052,19.374,19.361,55.94461036]
[1693863999849,4.0,19.373,19.361,55.94461036]
[1693864002153,8.052,19.374,19.361,55.94461036]
[1693864002951,4.0,19.373,19.361,55.94461036]
[1693864003151,8.052,19.374,19.361,55.94461036]
[1693864007354,4.0,19.373,19.361,55.94461036]
[1693864007536,8.052,19.373,19.361,55.94461036]
[1693864008152,26.012,19.376,19.361,55.94461036]
[1693864008452,12.051,19.375,19.361,55.94461036]
[1693864020368,4.0,19.375,19.361,55.94461036]
[1693864020659,24.0,19.378,19.361,55.94461036]
[1693864021658,8.051,19.377,19.361,55.94461036]
[1693864021855,24.0,19.376,19.361,55.94461036]
[1693864022047,32.051,19.376,19.361,55.94461036]
[1693864022248,24.0,19.376,19.361,55.94461036]
[1693864022448,4.0,19.376,19.361,55.94461036]
[1693864022653,8.051,19.376,19.361,55.94461036]
[1693864022849,4.0,19.375,19.361,55.94461036]
[1693864024059,8.052,19.374,19.361,55.94461036]
[1693864024264,4.0,19.373,19.361,55.94461036]
[1693864024957,12.052,19.373,19.361,55.94461036]
[1693864025160,8.052,19.374,19.361,55.94461036]
[1693864025457,4.0,19.373,19.361,55.94461036]
[1693864025770,3.5,19.373,19.361,55.94461036]
[1693864026963,11.552,19.373,19.361,55.94461036]
[1693864027268,8.052,19.373,19.361,55.94461036]
[1693864027462,8.052,19.374,19.361,55.94461036]
[1693864027662,3.5,19.373,19.361,55.94461036]
[1693864030568,3.5,19.375,19.361,55.94461036]
[1693864030759,11.551,19.375,19.361,55.94461036]
[1693864031362,3.5,19.375,19.361,55.94461036]
[1693864031771,11.551,19.375,19.361,55.94461036]
[1693864061986,11.551,19.375,19.361,0.94461036]
[1693864063389,11.551,19.375,19.361,55.94461036]
[1693864068098,3.5,19.375,19.361,55.94461036]
[1693864069782,11.551,19.375,19.361,55.94461036]
[1693864069996,8.051,19.375,19.361,55.94461036]
[1693864070392,3.5,19.374,19.361,55.94461036]
[1693864071080,11.552,19.374,19.361,55.94461036]
[1693864071284,3.5,19.377,19.361,55.94461036]
[1693864071495,8.051,19.375,19.361,55.94461036]
[1693864071784,3.5,19.374,19.361,55.94461036]
[1693864073694,3.5,19.375,19.361,55.94461036]
[1693864074887,31.551,19.376,19.361,55.94461036]
[1693864082502,30.051,19.376,19.361,55.94461036]
[1693864083593,10.051,19.376,19.361,55.94461036]
[1693864091704,10.051,19.376,19.362,20.0]
[1693864091905,6.551,19.376,19.363,56.94461036]
[1693864092098,6.551,19.376,19.364,20.0]
[1693864092311,6.551,19.376,19.365,55.0]
[1693864092806,6.551,19.376,19.366,20.0]
[1693864093002,6.551,19.376,19.367,55.0]
[1693864094307,8.05,19.377,19.367,55.0]
[1693864094506,3.5,19.376,19.367,55.0]
[1693864094896,8.05,19.377,19.367,55.0]
[1693864095097,3.5,19.376,19.367,55.0]
[1693864095501,8.051,19.376,19.367,55.0]
[1693864097299,3.5,19.378,19.367,55.0]
[1693864097500,8.05,19.377,19.367,55.0]
[1693864099805,8.05,19.379,19.367,55.0]
[1693864100003,1.97981951,19.378,19.367,55.0]
[1693864100206,10.02981951,19.378,19.367,55.0]
[1693864102620,8.05,19.378,19.367,55.0]
[1693864104622,1.1639803,19.377,19.367,55.0]
[1693864105120,8.05,19.377,19.367,55.0]
[1693864109023,1.03769701,19.376,19.367,55.0]
[1693864109219,8.051,19.376,19.367,55.0]
[1693864109734,8.051,19.376,19.364,26.008]
[1693864109914,8.051,19.376,19.365,20.0]
[1693864113823,2.07440776,19.376,19.365,20.0]
[1693864117823,8.051,19.376,19.365,20.0]
[1693864118720,8.05,19.377,19.365,20.0]
[1693864118911,3.16939517,19.376,19.365,20.0]
[1693864121822,11.22039517,19.376,19.365,20.0]
[1693864122024,8.051,19.376,19.365,20.0]
[1693864131345,8.051,19.376,19.366,55.0]
[1693864131735,8.051,19.376,19.367,20.0]
[1693864134244,8.051,19.376,19.364,26.008]
[1693864134546,8.052,19.372,19.364,26.008]
[1693864134728,7.552,19.372,19.364,26.008]
[1693864135432,1.74112636,19.371,19.364,26.008]
[1693864135630,7.552,19.372,19.364,26.008]
[1693864135930,2.03517331,19.371,19.364,26.008]
[1693864138346,7.552,19.372,19.364,26.008]
[1693864139626,2.03517331,19.371,19.364,26.008]
[1693864141250,7.552,19.372,19.364,26.008]
[1693864142731,2.03517331,19.371,19.364,26.008]
[1693864144426,2.03517331,19.371,19.358,1.44461036]
[1693864144630,7.552,19.372,19.358,56.44461036]
[1693864144830,8.052,19.373,19.358,56.44461036]
[1693864145234,2.38345415,19.372,19.358,120.72820936]
[1693864147348,8.052,19.372,19.358,120.72820936]
[1693864147646,2.38345415,19.371,19.358,120.72820936]
[1693864148348,2.38345415,19.372,19.358,120.72820936]
[1693864148644,8.053,19.372,19.358,120.72820936]
[1693864149145,10.43545415,19.374,19.358,120.72820936]
[1693864149449,2.38345415,19.374,19.358,120.72820936]
[1693864149748,23.5,19.376,19.358,120.72820936]
[1693864150645,8.052,19.374,19.358,120.72820936]
[1693864150841,3.5,19.373,19.358,120.72820936]
[1693864152241,11.552,19.373,19.358,65.72820936]
[1693864152439,8.052,19.374,19.358,65.72820936]
[1693864152643,3.5,19.373,19.358,65.72820936]
[1693864153528,3.5,19.373,19.36,1.44461036]
[1693864155133,3.5,19.374,19.36,1.44461036]
[1693864155941,11.552,19.374,19.36,1.44461036]
[1693864160553,11.552,19.374,19.36,39.74461036]
[1693864160852,11.552,19.374,19.361,55.0]
[1693864161146,11.552,19.374,19.362,1.44461036]
[1693864170056,8.052,19.374,19.362,1.44461036]
[1693864170260,3.5,19.373,19.362,1.44461036]
[1693864174666,8.052,19.374,19.362,1.44461036]
[1693864175459,3.5,19.373,19.362,1.44461036]
[1693864176568,11.552,19.373,19.362,1.44461036]
[1693864176762,8.052,19.373,19.362,1.44461036]
[1693864178267,3.5,19.373,19.362,1.44461036]
[1693864179561,3.5,19.375,19.362,1.44461036]
[1693864179758,11.551,19.375,19.362,1.44461036]
[1693864183464,11.551,19.375,19.361,1.44461036]
[1693864184855,11.551,19.375,19.361,56.44461036]
[1693864187068,11.551,19.375,19.361,1.44461036]
[1693864188566,11.551,19.375,19.361,56.44461036]
[1693864197268,11.551,19.375,19.361,1.44461036]
[1693864198489,11.551,19.375,19.361,56.44461036]
[1693864205396,11.551,19.375,19.361,1.44461036]
[1693864205784,11.551,19.375,19.361,56.44461036]
[1693864206593,11.551,19.375,19.361,1.44461036]
[1693864206889,11.552,19.373,19.361,1.44461036]
[1693864210487,3.5,19.373,19.361,56.44461036]
[1693864210690,3.5,19.375,19.361,56.44461036]
[1693864210993,8.052,19.373,19.361,56.44461036]
[1693864211197,3.5,19.372,19.361,56.44461036]
[1693864212386,3.5,19.373,19.361,56.44461036]
[1693864213691,3.5,19.373,19.361,1.44461036]
[1693864213896,66.552,19.373,19.361,1.44461036]
[1693864214081,162.9763,19.373,19.359,1.44461036]
[1693864214599,107.9763,19.373,19.359,1.44461036]
[1693864215289,107.9763,19.373,19.359,56.44461036]
[1693864215982,11.552,19.373,19.359,56.44461036]
[1693864216179,92.7685,19.372,19.359,56.44461036]
[1693864216384,11.553,19.371,19.359,56.44461036]
[1693864216586,8.053,19.371,19.359,56.44461036]
[1693864216891,11.553,19.371,19.359,56.44461036]
[1693864217094,8.053,19.371,19.359,56.44461036]
[1693864218783,34.071,19.371,19.359,56.44461036]
[1693864219194,3.5,19.37,19.359,56.44461036]
[1693864219392,8.055,19.367,19.359,56.44461036]
[1693864219896,55.0,19.366,19.359,1.44461036]
[1693864220201,8.055,19.366,19.359,1.44461036]
[1693864220389,8.055,19.366,19.355,55.0]
[1693864220584,8.055,19.366,19.356,21.44461036]
[1693864222487,8.054,19.368,19.356,21.44461036]
[1693864222695,55.0,19.367,19.356,21.44461036]
[1693864223092,3.5,19.366,19.356,21.44461036]
[1693864223407,3.5,19.365,19.356,1.44461036]
[1693864223610,11.556,19.365,19.353,1.44461036]
[1693864223788,11.556,19.365,19.353,56.44461036]
[1693864224394,11.556,19.365,19.353,111.44461036]
[1693864228814,11.556,19.365,19.353,56.44461036]
[1693864233814,11.556,19.365,19.353,1.44461036]
[1693864234109,11.556,19.365,19.351,1.44461036]
[1693864234315,11.556,19.365,19.351,56.44461036]
[1693864234514,11.556,19.365,19.351,94.74461036]
[1693864235919,11.556,19.365,19.351,39.74461036]
[1693864236114,55.0,19.364,19.351,39.74461036]
[1693864236298,8.057,19.362,19.351,39.74461036]
[1693864236498,3.5,19.361,19.351,39.74461036]
[1693864239506,8.057,19.361,19.351,39.74461036]
[1693864239706,8.057,19.361,19.351,1.44461036]
[1693864239920,8.057,19.361,19.348,1.44461036]
[1693864239921,3.5,19.36,19.348,1.44461036]
[1693864240301,8.057,19.361,19.346,21.44461036]
[1693864240506,38.3,19.36,19.348,54.733759]
[1693864240721,38.3,19.36,19.349,1.44461036]
[1693864241105,46.358,19.36,19.349,1.44461036]
[1693864248030,46.358,19.36,19.349,56.44461036]
[1693864254635,8.058,19.36,19.349,56.44461036]
[1693864258334,8.058,19.36,19.349,1.44461036]
[1693864261237,8.057,19.361,19.349,1.44461036]
[1693864261830,3.5,19.36,19.349,1.44461036]
[1693864262024,8.057,19.361,19.349,1.44461036]
[1693864262221,3.5,19.36,19.349,1.44461036]
[1693864263538,8.057,19.361,19.349,1.44461036]
[1693864269630,3.5,19.362,19.349,1.44461036]
[1693864269833,58.5,19.362,19.349,1.44461036]
[1693864270744,66.557,19.362,19.349,1.44461036]
[1693864283143,38.3,19.36,19.349,1.44461036]
[1693864283341,46.357,19.36,19.349,1.44461036]
[1693864284855,3.5,19.359,19.349,1.44461036]
[1693864285951,46.357,19.36,19.349,1.44461036]
[1693864287655,3.5,19.359,19.349,1.44461036]
[1693864290847,11.558,19.359,19.349,1.44461036]
[1693864293958,8.058,19.359,19.349,1.44461036]
[1693864301656,3.5,19.358,19.349,1.44461036]
[1693864301853,8.058,19.359,19.349,1.44461036]
[1693864302766,3.5,19.358,19.349,1.44461036]
[1693864303866,11.558,19.358,19.349,1.44461036]
[1693864304161,8.058,19.358,19.349,1.44461036]
[1693864305667,34.093,19.358,19.349,1.44461036]
[1693864305875,8.058,19.358,19.349,1.44461036]
[1693864307067,8.058,19.358,19.347,1.44461036]
[1693864307268,3.5,19.357,19.345,1.44461036]
[1693864307467,8.059,19.356,19.348,1.44461036]
[1693864307867,8.059,19.356,19.346,21.44461036]
[1693864309969,8.059,19.357,19.346,21.44461036]
[1693864311963,1.68589902,19.359,19.346,21.44461036]
[1693864311964,8.058,19.358,19.346,21.44461036]
[1693864320765,1.68589902,19.357,19.346,21.44461036]
[1693864320970,8.059,19.356,19.346,21.44461036]
[1693864339407,55.0,19.355,19.346,1.44461036]
[1693864339617,34.104,19.353,19.341,1.44461036]
[1693864339811,38.3,19.35,19.339,38.3]
[1693864340014,8.063,19.347,19.34,1.44461036]
[1693864340215,1.91468849,19.346,19.332,1.44461036]
[1693864340404,8.064,19.343,19.331,1.44461036]
[1693864340804,8.064,19.343,19.331,70.77347836]
[1693864342014,8.066,19.341,19.331,70.77347836]
[1693864343704,8.066,19.341,19.331,1.44461036]
[1693864343909,8.066,19.341,19.329,1.44461036]
[1693864344110,39.54849927,19.34,19.326,21.44461036]
[1693864344411,8.067,19.337,19.326,21.44461036]
[1693864344810,8.067,19.337,19.327,20.0]
[1693864345117,8.067,19.337,19.328,1.44461036]
[1693864346022,8.067,19.337,19.327,1.44461036]
[1693864346215,20.0,19.336,19.327,1.44461036]
[1693864346425,8.068,19.334,19.32,94.29628409]
[1693864346719,8.068,19.334,19.321,1.44461036]
[1693864347418,8.07,19.331,19.321,1.44461036]
[1693864348018,8.069,19.332,19.321,1.44461036]
[1693864361516,8.071,19.328,19.321,1.44461036]
[1693864362223,38.3,19.33,19.321,1.44461036]
[1693864363620,8.07,19.329,19.321,1.44461036]
[1693864364022,8.07,19.329,19.32,27.265096]
[1693864364833,8.07,19.329,19.314,76.83558123]
[1693864364834,8.07,19.329,19.315,1.44461036]
[1693864365036,8.07,19.329,19.315,21.44461036]
[1693864366027,8.07,19.329,19.315,85.81861036]
[1693864369422,8.07,19.329,19.316,55.0]
[1693864369622,8.07,19.329,19.317,21.44461036]
[1693864374728,8.07,19.329,19.317,1.44461036]
[1693864384043,55.0,19.328,19.317,1.44461036]
[1693864384232,8.072,19.326,19.317,1.44461036]
[1693864394342,55.0,19.325,19.316,1.44461036]
[1693864394559,34.156,19.323,19.304,43.59103036]
[1693864394863,38.3,19.32,19.305,1.44461036]
[1693864395043,8.075,19.319,19.305,1.44461036]
[1693864395758,8.075,19.319,19.305,21.44461036]
[1693864396949,8.075,19.319,19.306,55.0]
[1693864397163,8.075,19.319,19.307,21.44461036]
[1693864397658,65.013,19.319,19.307,21.44461036]
[1693864397851,8.075,19.319,19.306,1.44461036]
[1693864398859,8.075,19.319,19.305,56.44461036]
[1693864399163,8.075,19.319,19.307,1.44461036]
[1693864408369,21.99571826,19.318,19.304,1.44461036]
[1693864408564,8.076,19.316,19.304,56.44461036]
[1693864408960,8.076,19.316,19.304,55.0]
[1693864411771,8.076,19.316,19.305,0.59154868]
[1693864411954,8.076,19.316,19.304,55.0]
[1693864413472,8.076,19.316,19.305,0.61445585]
[1693864413862,8.076,19.316,19.304,55.0]
[1693864414072,8.076,19.316,19.305,0.60440354]
[1693864417074,8.076,19.316,19.304,0.60440354]
[1693864417465,1.05538963,19.315,19.303,53.567546]
[1693864417667,8.078,19.312,19.304,0.58223849]
[1693864418475,8.078,19.312,19.303,53.567546]
[1693864419079,8.078,19.312,19.304,55.0]
[1693864424466,8.078,19.312,19.303,53.567546]
[1693864424673,8.078,19.312,19.299,43.59103036]
[1693864424872,8.078,19.312,19.3,1.05604322]
[1693864425064,8.078,19.312,19.299,1.44461036]
[1693864425263,8.078,19.312,19.297,67.8269]
[1693864425464,8.078,19.312,19.298,1.44461036]
[1693864425979,8.078,19.312,19.298,56.44461036]
[1693864427689,8.08,19.307,19.298,56.44461036]
[1693864428266,8.08,19.307,19.298,55.0]
[1693864428877,8.08,19.307,19.297,67.8269]
[1693864431288,1.05538963,19.306,19.29,38.3]
[1693864431473,8.082,19.302,19.29,38.3]
[1693864431675,8.082,19.302,19.291,1.02882918]
[1693864432368,8.082,19.302,19.291,56.02882918]
[1693864432572,8.082,19.302,19.291,112.50682918]
[1693864434587,8.082,19.302,19.291,57.50682918]
[1693864435988,8.082,19.302,19.293,0.64377409]
[1693864436695,8.082,19.302,19.292,55.0]
[1693864438385,8.082,19.302,19.291,56.978]
[1693864439495,8.081,19.303,19.291,56.978]
[1693864439694,96.7794,19.305,19.292,0.86703593]
[1693864440100,96.7794,19.305,19.292,55.86703593]
[1693864440304,56.968,19.309,19.292,55.86703593]
[1693864440485,8.081,19.303,19.292,55.86703593]
[1693864440797,8.081,19.303,19.292,55.0]
[1693864441295,8.081,19.303,19.291,56.978]
[1693864441482,83.093,19.304,19.291,56.978]
[1693864441483,8.084,19.298,19.291,56.978]
[1693864441681,8.084,19.298,19.283,0.94461036]
[1693864441883,8.084,19.298,19.283,20.94461036]
[1693864442091,8.083,19.299,19.283,20.94461036]
[1693864442299,8.083,19.299,19.283,59.24461036]
[1693864442792,38.3,19.3,19.283,110.3423547]
[1693864443002,1.55350833,19.303,19.283,110.3423547]
[1693864443389,94.1281,19.304,19.283,153.93338506]
[1693864443895,8.083,19.3,19.284,55.0]
[1693864444094,8.083,19.3,19.286,0.94461036]
[1693864444275,8.083,19.3,19.286,55.94461036]
[1693864444477,8.083,19.3,19.288,0.94461036]
[1693864444701,8.083,19.3,19.288,55.0]
[1693864446298,8.082,19.301,19.288,55.0]
[1693864446488,26.11,19.303,19.29,38.3]
[1693864446690,26.11,19.303,19.291,55.0]
[1693864447194,26.11,19.303,19.291,110.0]
[1693864447583,8.082,19.301,19.291,110.0]
[1693864455687,8.081,19.303,19.291,110.0]
[1693864455994,8.081,19.305,19.292,0.70768927]
[1693864456312,8.081,19.305,19.291,110.0]
[1693864468808,8.08,19.306,19.291,110.0]
[1693864470507,1.529828,19.305,19.291,110.0]
[1693864471311,1.529828,19.305,19.292,20.0]
[1693864471517,2.05538963,19.315,19.293,55.94461036]
[1693864471712,8.078,19.311,19.293,55.94461036]
[1693864471914,8.078,19.311,19.294,20.0]
[1693864472110,1.76098923,19.31,19.295,55.94461036]
[1693864472310,8.078,19.311,19.296,20.0]
[1693864472518,1.76730024,19.31,19.297,55.0]
[1693864472712,9.84530024,19.31,19.297,55.0]
[1693864473018,26.095,19.314,19.297,55.0]
[1693864473323,150.3277,19.317,19.297,55.0]
[1693864473324,2.05538963,19.313,19.3,38.3]
[1693864473628,2.05538963,19.314,19.301,55.0]
[1693864474420,22.6459017,19.316,19.301,55.0]
[1693864475622,8.077,19.315,19.301,55.0]
[1693864475809,2.6459017,19.314,19.301,55.0]
[1693864476323,10.7229017,19.314,19.301,55.0]
[1693864476722,2.6459017,19.314,19.301,55.0]
[1693864477208,10.7229017,19.314,19.301,55.0]
[1693864480416,8.077,19.314,19.301,55.0]
[1693864486015,1.5283228,19.313,19.301,55.0]
[1693864486417,8.077,19.314,19.301,55.0]
[1693864486928,1.60074113,19.313,19.301,55.0]
[1693864487129,9.67774113,19.313,19.301,55.0]
[1693864487325,8.077,19.313,19.301,55.0]
[1693864487730,1.59560232,19.312,19.301,55.0]
[1693864487916,9.67360232,19.312,19.301,55.0]
[1693864488534,46.092,19.316,19.3,38.3]
[1693864488719,2.05538963,19.315,19.3,38.3]
[1693864489637,8.077,19.312,19.3,38.3]
[1693864489818,2.05538963,19.311,19.301,55.0]
[1693864490017,10.13338963,19.311,19.301,55.0]
[1693864490216,8.078,19.311,19.301,55.0]
[1693864492537,1.63811106,19.31,19.301,55.0]
[1693864492735,8.079,19.309,19.301,55.0]
[1693864494840,8.079,19.309,19.297,110.442361]
[1693864495214,55.0,19.308,19.297,110.442361]
[1693864495414,63.079,19.308,19.293,0.50453049]
[1693864495633,63.079,19.308,19.293,20.0]
[1693864496428,63.079,19.308,19.294,55.0]
[1693864496630,63.079,19.308,19.295,20.0]
[1693864499925,1.63060754,19.307,19.294,20.0]
[1693864500240,8.08,19.306,19.294,20.0]
[1693864506832,63.079,19.308,19.294,20.0]
[1693864507038,55.0,19.308,19.295,55.0]
[1693864507337,55.0,19.309,19.296,20.0]
[1693864507532,1.72818319,19.308,19.296,20.0]
[1693864508244,55.0,19.309,19.296,20.0]
[1693864508641,8.079,19.308,19.296,20.0]
[1693864513346,8.079,19.308,19.293,63.079]
[1693864513347,8.079,19.308,19.297,55.0]
[1693864514043,8.079,19.308,19.294,20.0]
[1693864514249,8.079,19.308,19.295,55.0]
[1693864514548,8.079,19.308,19.296,20.0]
[1693864516052,56.67627563,19.307,19.294,20.0]
[1693864516347,8.081,19.305,19.294,20.0]
[1693864518250,8.081,19.305,19.295,55.0]
[1693864518454,26.103,19.308,19.296,20.0]
[1693864518757,161.9269,19.31,19.296,20.0]
[1693864519058,8.079,19.308,19.296,20.0]
[1693864519351,1.86081776,19.307,19.296,20.0]
[1693864519544,8.08,19.307,19.296,20.0]
[1693864522751,8.08,19.307,19.293,63.079]
[1693864522961,38.3,19.3,19.28,38.3]
[1693864523135,8.085,19.294,19.281,0.94461036]
[1693864523745,8.085,19.294,19.273,25.73783689]
[1693864523950,38.3,19.29,19.281,74.19]
[1693864524149,8.088,19.288,19.281,74.19]
[1693864524458,75.0,19.287,19.262,25.73783689]
[1693864524749,8.091,19.279,19.263,0.94461036]
[1693864524954,38.3,19.28,19.263,0.94461036]
[1693864525455,55.0,19.279,19.263,0.94461036]
[1693864525753,1.05538963,19.278,19.26,38.3]
[1693864526051,28.092,19.278,19.26,38.3]
[1693864526263,54.235,19.278,19.253,43.71157767]
[1693864526453,38.3,19.27,19.251,0.94461036]
[1693864526655,38.3,19.27,19.251,50.94461036]
[1693864526656,46.395,19.27,19.251,50.94461036]
[1693864526854,38.3,19.26,19.24,38.3]
[1693864527361,38.3,19.26,19.241,53.954438]
[1693864527747,55.0,19.269,19.25,38.3]
[1693864528046,8.097,19.265,19.242,25.23783689]
[1693864528354,2.95713285,19.264,19.24,192.65]
[1693864528656,55.0,19.264,19.241,20.0]
[1693864528956,55.0,19.264,19.241,45.23783689]
[1693864529558,63.098,19.264,19.241,45.23783689]
[1693864529944,8.097,19.266,19.241,45.23783689]
[1693864530155,38.53,19.27,19.25,38.53]
[1693864530355,8.096,19.267,19.25,38.53]
[1693864530553,8.096,19.267,19.251,55.0]
[1693864530757,8.096,19.269,19.251,55.0]
[1693864530967,8.096,19.269,19.252,20.0]
[1693864531168,8.096,19.269,19.253,55.0]
[1693864531465,8.094,19.273,19.254,20.0]
[1693864531669,120.3007,19.277,19.254,20.0]
[1693864531670,10.58291169,19.272,19.255,55.0]
[1693864531859,8.094,19.272,19.255,55.0]
[1693864532054,8.094,19.272,19.256,20.0]
[1693864532256,8.094,19.272,19.257,55.0]
[1693864532771,2.58426162,19.271,19.257,55.0]
[1693864533056,8.095,19.27,19.257,55.0]
[1693864533444,3.47352625,19.274,19.257,55.0]
[1693864533642,3.47352625,19.272,19.257,55.0]
[1693864533844,8.095,19.271,19.257,55.0]
[1693864534664,4.32493944,19.276,19.257,55.0]
[1693864534861,24.32493944,19.276,19.257,55.0]
[1693864535253,24.32493944,19.276,19.257,149.1557]
[1693864535755,4.32493944,19.278,19.257,149.1557]
[1693864535949,12.41693944,19.278,19.257,149.1557]
[1693864536155,4.32493944,19.276,19.257,149.1557]
[1693864536357,4.32493944,19.278,19.257,174.89353689]
[1693864536571,4.32493944,19.278,19.26,64.18]
[1693864536776,4.32493944,19.278,19.261,55.0]
[1693864537663,4.32493944,19.278,19.262,45.73783689]
[1693864537862,4.32493944,19.285,19.263,55.0]
[1693864538172,4.32493944,19.285,19.264,25.73783689]
[1693864538368,4.32493944,19.285,19.265,75.0]
[1693864538675,8.088,19.288,19.266,25.73783689]
[1693864538855,3.30414451,19.287,19.27,64.18]
[1693864539063,11.39114451,19.289,19.271,55.0]
[1693864539366,2.96122988,19.287,19.271,55.0]
[1693864539751,2.96122988,19.287,19.271,119.18]